bitfinex/quotes_ETHUSD_20220226
["timestamp","ask_amount","ask_price","bid_price","bid_amount"]
[1645900020663,1.52351975,2773.8,2773.6,0.5752]
[1645900020864,0.00425771,2773.9,2773.6,0.5752]
[1645900021471,1.52353788,2773.8,2773.6,0.5752]
[1645900022175,1.52353788,2773.7,2773.6,0.5752]
[1645900023171,1.52749574,2774.1,2773.6,0.5752]
[1645900023373,0.00425777,2773.8,2773.6,0.5752]
[1645900023574,1.52353788,2773.7,2773.6,0.5752]
[1645900024421,1.52749574,2774.1,2773.6,0.5752]
[1645900024625,1.52749574,2774.1,2773.0,0.25]
[1645900024626,0.00425777,2773.8,2773.0,0.25]
[1645900024927,1.88133788,2773.7,2773.0,0.25]
[1645900025126,5.02353788,2773.6,2772.8,1.1373]
[1645900025324,1.52353788,2773.5,2772.9,0.2752]
[1645900025521,1.52353788,2773.4,2773.0,1.20016489]
[1645900025722,1.52779598,2773.3,2773.0,1.20016489]
[1645900025922,1.52353788,2773.2,2773.0,0.3]
[1645900026124,1.52353788,2773.2,2772.9,0.5752]
[1645900026326,0.0042581,2773.3,2773.0,0.3]
[1645900026525,0.0042581,2773.3,2773.1,0.90166]
[1645900026725,0.00395786,2773.8,2773.1,0.90166]
[1645900026930,0.67238945,2774.0,2773.1,0.90166]
[1645900026931,0.01702997,2773.7,2773.1,0.90166]
[1645900027129,1.52364613,2773.6,2773.1,1.47686]
[1645900027326,1.52364613,2773.6,2773.1,12.12166]
[1645900027532,1.52364613,2773.6,2773.4,0.90158]
[1645900028187,1.52364613,2773.6,2773.2,0.3]
[1645900028188,0.44835089,2773.3,2773.2,0.3]
[1645900028393,0.44835089,2773.3,2773.1,12.22]
[1645900028795,0.44835089,2773.3,2773.2,1.0]
[1645900029392,0.45260901,2773.3,2773.2,1.0]
[1645900029792,0.45260901,2773.3,2773.2,1.90158]
[1645900029992,1.97620325,2773.3,2773.2,1.90158]
[1645900030199,1.97194513,2773.3,2773.2,12.82158]
[1645900030398,1.97193371,2773.3,2773.2,12.82158]
[1645900030596,1.97193371,2773.3,2773.2,2.90158]
[1645900030798,1.97194373,2773.3,2773.2,1.90158]
[1645900031003,1.97194373,2773.3,2773.2,2.90158]
[1645900031199,1.97194373,2773.3,2773.2,1.90158]
[1645900031397,1.97194373,2773.3,2773.2,2.90158]
[1645900032215,1.97194373,2773.3,2773.2,1.0]
[1645900032443,1.97194373,2773.3,2772.9,1.80331]
[1645900032619,1.97194373,2773.3,2772.8,0.3]
[1645900032620,1.52359284,2773.2,2772.8,0.3]
[1645900033017,1.52359284,2773.2,2772.5,2.23652]
[1645900033216,1.5275507,2773.2,2772.6,11.92]
[1645900033418,1.52359284,2773.2,2772.7,0.90174]
[1645900033618,1.52359284,2773.2,2772.8,1.0]
[1645900033815,1.52359284,2773.2,2772.8,2.80335]
[1645900034018,1.52359284,2773.2,2772.8,3.80335]
[1645900034217,0.0042583,2773.1,2772.8,3.80335]
[1645900034615,1.52371125,2773.0,2772.8,3.80335]
[1645900035216,0.44835089,2773.3,2772.8,3.80335]
[1645900035424,0.00425833,2773.0,2772.8,3.80335]
[1645900036271,0.44835089,2773.3,2772.8,3.80335]
[1645900036473,0.00425834,2773.0,2772.8,3.80335]
[1645900037273,1.52375972,2772.9,2772.8,3.80335]
[1645900037676,1.52375972,2773.2,2772.8,3.80335]
[1645900037876,0.00425834,2773.0,2772.8,3.80335]
[1645900038079,1.52375972,2772.9,2772.8,3.80335]
[1645900038880,0.00425839,2773.0,2772.8,3.80335]
[1645900039078,1.52375972,2772.9,2772.8,3.80335]
[1645900039327,1.52375972,2772.9,2772.8,14.72335]
[1645900039520,0.00425839,2773.0,2772.8,14.72335]
[1645900039722,0.00425839,2773.0,2772.9,1.22225376]
[1645900039922,1.52371449,2773.0,2772.9,1.22225376]
[1645900040123,0.00425835,2773.0,2772.8,15.02335]
[1645900040521,0.00425835,2773.0,2772.8,14.72335]
[1645900041023,0.44835089,2773.3,2772.8,14.72335]
[1645900041222,1.52369681,2773.2,2772.8,14.72335]
[1645900041423,0.00425835,2773.0,2772.8,14.72335]
[1645900041623,0.00425835,2773.0,2772.8,15.73540653]
[1645900041824,1.5237299,2772.9,2772.8,15.73540653]
[1645900042224,1.5237299,2772.9,2772.8,14.72335]
[1645900042426,0.44835089,2773.3,2772.8,14.72335]
[1645900042630,0.00425839,2773.0,2772.8,14.72335]
[1645900043470,0.44835089,2773.3,2772.8,14.72335]
[1645900043677,0.00425835,2773.0,2772.8,14.72335]
[1645900044471,1.52372363,2772.9,2772.8,12.92]
[1645900044673,1.52372131,2772.9,2772.8,12.92]
[1645900046076,0.44835089,2773.3,2772.8,12.92]
[1645900046077,0.00425839,2773.0,2772.8,12.92]
[1645900046278,0.00425839,2773.0,2772.8,2.0]
[1645900046478,0.00425839,2773.0,2772.8,1.0]
[1645900046680,1.52370408,2772.9,2772.8,1.0]
[1645900046920,0.00425839,2773.0,2772.8,1.0]
[1645900047123,0.44835089,2773.3,2772.8,1.0]
[1645900047323,0.00425839,2773.0,2772.8,1.0]
[1645900047552,1.52369879,2772.9,2772.8,1.0]
[1645900048530,0.00425839,2773.0,2772.8,11.92]
[1645900048726,1.52369879,2772.9,2772.8,12.92]
[1645900048927,1.52369879,2772.9,2772.8,13.82172]
[1645900049926,0.00425839,2773.0,2772.8,13.82172]
[1645900050566,0.00425839,2773.0,2772.9,11.353]
[1645900050768,0.44835089,2773.3,2773.0,1.0]
[1645900050970,1.52367265,2773.2,2773.0,1.0]
[1645900052067,1.52367265,2773.2,2772.9,11.22]
[1645900052268,1.52793087,2773.2,2772.9,11.92]
[1645900052468,1.52367265,2773.1,2772.9,11.92]
[1645900053267,1.52367265,2773.0,2772.9,11.92]
[1645900053784,1.52367265,2773.0,2772.8,1.0]
[1645900053972,1.88147265,2773.0,2772.4,1.80361]
[1645900054176,0.00425829,2773.1,2772.1,9.8328]
[1645900054177,0.35695252,2772.8,2772.1,9.8328]
[1645900054433,0.35695252,2772.8,2772.1,7.2146]
[1645900054434,1.52367265,2772.7,2772.1,7.2146]
[1645900055035,1.52367265,2772.7,2772.2,0.90193]
[1645900055636,1.52367265,2772.7,2772.3,0.433]
[1645900055836,1.52793133,2772.6,2772.3,1.433]
[1645900056037,1.52367265,2772.5,2772.3,1.433]
[1645900056236,0.00425868,2772.6,2772.3,1.433]
[1645900056440,1.52395043,2772.5,2772.3,1.433]
[1645900056836,1.57429415,2773.2,2772.3,1.433]
[1645900056837,0.3578,2772.9,2772.3,1.433]
[1645900057039,0.00425868,2772.6,2772.3,1.433]
[1645900057237,0.00425868,2772.6,2772.3,12.353]
[1645900057437,0.00425868,2772.6,2772.3,1.433]
[1645900057639,0.00425868,2772.6,2772.3,0.433]
[1645900057839,0.9019047,2773.2,2772.3,0.433]
[1645900058067,0.3578,2773.0,2772.5,0.90187]
[1645900058267,0.00425871,2772.6,2772.5,0.90187]
[1645900059073,0.3578,2773.1,2772.5,0.90187]
[1645900059268,1.52392199,2773.0,2772.5,0.90187]
[1645900059470,0.00425864,2772.7,2772.5,0.90187]
[1645900059673,0.00425864,2772.7,2772.2,0.90195]
[1645900060274,0.3578,2773.1,2772.3,0.433]
[1645900060475,0.3578,2772.9,2772.3,0.433]
[1645900060675,0.00425871,2772.6,2772.3,0.433]
[1645900061581,0.3578,2772.9,2772.3,0.433]
[1645900061833,0.0042587,2772.6,2772.3,0.433]
[1645900062025,0.0042587,2772.6,2772.5,1.0]
[1645900062825,0.3578,2772.9,2772.5,1.0]
[1645900063031,0.00425863,2772.7,2772.1,7.2146]
[1645900063228,1.88172755,2772.6,2772.1,8.2146]
[1645900063427,1.52392755,2772.5,2772.1,8.2146]
[1645900063628,0.00425863,2772.7,2772.1,8.2146]
[1645900063828,1.52395643,2772.6,2772.1,9.2146]
[1645900064134,1.52395643,2772.6,2772.3,1.05343278]
[1645900064428,0.0042588,2772.4,2772.3,1.05343278]
[1645900065028,0.3578,2773.1,2772.3,1.05343278]
[1645900065229,1.5239159,2773.0,2772.3,1.05343278]
[1645900065430,0.00425877,2772.5,2772.3,1.05343278]
[1645900065676,0.00425877,2772.5,2772.2,1.0]
[1645900066275,1.2597892,2772.9,2772.2,1.0]
[1645900066476,1.5239391,2772.8,2772.2,1.0]
[1645900066681,0.00425877,2772.5,2772.2,1.0]
[1645900067477,0.9019892,2772.9,2772.2,1.0]
[1645900067681,1.52385134,2772.8,2772.2,1.0]
[1645900067881,0.00425877,2772.5,2772.2,1.0]
[1645900068382,0.00425877,2772.5,2772.3,0.9019]
[1645900068883,1.2597143,2773.2,2772.3,0.9019]
[1645900069086,0.00425874,2772.5,2772.3,0.9019]
[1645900069523,0.00425874,2772.5,2772.3,1.9019]
[1645900069727,0.00425874,2772.5,2772.3,0.9019]
[1645900069930,1.2597143,2773.2,2772.4,1.0]
[1645900070128,0.00425874,2772.5,2772.4,1.0]
[1645900071132,0.01703232,2773.0,2772.4,1.0]
[1645900071133,0.3578,2773.1,2772.4,1.0]
[1645900071328,0.00425871,2772.6,2772.4,1.90191]
[1645900071536,0.00425871,2772.6,2772.4,1.0]
[1645900072327,0.9019982,2772.9,2772.4,1.0]
[1645900072529,0.00425867,2772.6,2772.4,1.0]
[1645900073576,0.3578,2772.8,2772.4,1.0]
[1645900073780,0.00425867,2772.6,2772.4,1.0]
[1645900074378,0.00425867,2772.6,2772.1,8.2146]
[1645900074582,0.00425867,2772.6,2772.1,8.5146]
[1645900074779,0.3578,2772.8,2772.1,9.5146]
[1645900074979,0.00425877,2772.5,2772.1,9.5146]
[1645900075378,0.00425877,2772.5,2772.2,0.90198]
[1645900075979,0.3578,2772.8,2772.2,0.90198]
[1645900076183,0.00425877,2772.5,2772.2,0.90198]
[1645900076380,0.00425877,2772.5,2772.3,1.3476089]
[1645900077133,0.3578,2773.1,2772.2,0.90198]
[1645900077329,0.00425874,2772.5,2772.1,8.3587]
[1645900077528,1.52399875,2772.4,2772.1,8.2146]
[1645900077841,1.52399875,2772.4,2772.1,7.2146]
[1645900078227,0.00425874,2772.5,2772.1,7.2146]
[1645900078436,1.52398827,2772.4,2772.1,7.2146]
[1645900078629,0.00425884,2772.4,2772.1,7.2146]
[1645900079131,0.00425884,2772.4,2772.2,0.90198]
[1645900079329,0.00425884,2772.4,2772.2,1.90198]
[1645900079531,0.9020048,2772.9,2772.2,1.90198]
[1645900079734,0.00425881,2772.4,2772.2,1.90198]
[1645900080579,0.00425881,2772.4,2772.2,2.63498]
[1645900080780,0.3578,2773.1,2772.5,0.90187]
[1645900080980,1.54090158,2773.0,2772.5,0.90187]
[1645900081184,1.52386958,2772.9,2772.5,0.90187]
[1645900081582,1.52386958,2772.9,2772.5,1.90187]
[1645900082185,0.44835089,2773.3,2772.5,1.90187]
[1645900082186,1.52812811,2772.8,2772.5,1.90187]
[1645900082393,1.52386958,2772.7,2772.5,0.90187]
[1645900082588,1.52386958,2772.7,2772.6,1.0]
[1645900082786,0.00425853,2772.8,2772.6,1.0]
[1645900082993,0.00425853,2772.8,2772.7,11.353]
[1645900082994,0.003135,2772.8,2772.7,11.353]
[1645900083191,0.44835089,2773.3,2772.7,11.7108]
[1645900083393,1.52353864,2773.2,2772.9,10.92]
[1645900083587,1.52353864,2773.2,2772.8,1.04565]
[1645900083588,0.46538253,2773.3,2773.1,10.92]
[1645900083789,0.46538253,2773.3,2773.2,0.433]
[1645900083988,0.46538253,2773.3,2773.2,1.5926]
[1645900084189,0.46538253,2773.3,2773.2,2.5926]
[1645900084423,0.44835089,2773.3,2773.2,3.35003]
[1645900084620,0.44835089,2773.3,2773.2,4.35003]
[1645900085921,0.44835089,2773.3,2773.2,15.27003]
[1645900087826,0.00399064,2774.4,2774.2,0.90131]
[1645900088071,2.43789534,2774.6,2773.9,2.23562]
[1645900088072,0.7233958,2774.0,2773.9,2.23562]
[1645900088269,0.7233958,2774.0,2773.9,2.53562]
[1645900088569,0.7233958,2774.0,2773.9,3.53562]
[1645900088769,0.7233958,2774.0,2773.9,4.53562]
[1645900089769,0.7233958,2774.0,2773.9,5.7691639]
[1645900091178,0.00485589,2774.1,2774.0,12.0]
[1645900091380,0.01942063,2774.5,2774.2,10.92]
[1645900091587,0.00399064,2774.8,2774.4,10.92]
[1645900091837,2.43740357,2774.9,2774.5,11.353]
[1645900091838,0.01044991,2774.6,2774.5,11.353]
[1645900092033,0.01044991,2774.6,2774.5,14.9971]
[1645900092232,4.991e-05,2774.6,2774.5,16.3549]
[1645900092535,1.52677211,2775.7,2775.3,1.24439815]
[1645900092738,2.28430843,2776.0,2775.4,0.433]
[1645900092739,1.52278147,2775.6,2775.4,0.433]
[1645900092932,0.00399064,2776.0,2775.4,0.433]
[1645900093131,1.52263475,2776.0,2775.6,1.0]
[1645900093335,0.67238945,2776.3,2775.7,0.90086]
[1645900093336,1.52263475,2775.9,2775.7,0.90086]
[1645900093631,1.52263475,2775.8,2775.7,0.90086]
[1645900094032,1.52263475,2776.2,2775.7,0.90086]
[1645900094232,0.36179064,2776.3,2775.7,1.90086]
[1645900094233,1.52263475,2776.1,2775.7,1.90086]
[1645900094432,1.52263475,2776.0,2775.7,2.20086]
[1645900094632,0.36179064,2776.3,2775.7,2.20086]
[1645900094633,1.52263475,2775.9,2775.7,2.20086]
[1645900094833,0.36179064,2776.3,2775.7,2.20086]
[1645900095031,1.52259724,2776.2,2775.7,2.20086]
[1645900095435,1.52259724,2776.2,2775.7,3.59600965]
[1645900095686,1.52259724,2776.2,2775.7,2.20086]
[1645900096488,1.88039724,2776.2,2775.7,1.90086]
[1645900096688,1.88039724,2776.2,2775.4,3.70243]
[1645900096689,1.52746935,2776.1,2775.4,2.0]
[1645900096887,1.52746935,2776.1,2775.4,0.1441]
[1645900096888,5.38039724,2776.0,2775.4,0.1441]
[1645900097087,0.3578,2775.8,2775.1,2.17787315]
[1645900097289,3.8578,2775.8,2775.1,1.47787315]
[1645900097487,0.3578,2775.8,2775.1,0.31557315]
[1645900097893,0.00487252,2775.6,2775.1,0.31557315]
[1645900098090,0.00487252,2775.6,2775.1,0.01557315]
[1645900098489,0.00487252,2775.6,2775.3,1.27291465]
[1645900098890,0.36179064,2775.9,2775.3,2.27291465]
[1645900099089,0.0048726,2775.5,2775.3,2.27291465]
[1645900099729,0.0048726,2775.5,2775.3,3.17389465]
[1645900099930,0.00399064,2775.8,2775.3,3.17389465]
[1645900100131,0.3578,2775.9,2775.3,3.17389465]
[1645900100331,0.00487256,2775.5,2775.3,3.17389465]
[1645900100540,0.00487256,2775.5,2775.4,0.1441]
[1645900100731,0.00487256,2775.5,2775.4,1.1441]
[1645900101134,0.00399064,2776.2,2775.4,1.1441]
[1645900101331,0.00399064,2776.3,2775.8,1.19421062]
[1645900101533,0.01948715,2776.0,2775.6,1.20088]
[1645900102333,0.00399064,2776.3,2775.6,1.20088]
[1645900102534,0.00399064,2776.3,2775.7,1.41718024]
[1645900102733,0.00487223,2775.9,2775.7,1.41718024]
[1645900103587,0.00399064,2776.4,2775.7,1.41718024]
[1645900103800,0.00261572,2775.9,2775.7,1.41718024]
[1645900104793,0.00399064,2776.4,2775.7,1.41718024]
[1645900104993,0.00261572,2775.9,2775.7,1.41718024]
[1645900105998,0.00399064,2776.4,2776.2,1.3525856]
[1645900106198,0.01046129,2776.4,2776.2,1.3525856]
[1645900106396,0.01046129,2776.4,2775.9,0.3816]
[1645900106596,0.01046129,2776.4,2775.9,1.8146]
[1645900107032,0.01046129,2776.4,2776.0,0.3]
[1645900107331,0.90476794,2776.7,2775.9,0.433]
[1645900107332,0.9007773,2776.7,2775.9,0.433]
[1645900107531,0.00488984,2776.3,2776.0,1.08518531]
[1645900107929,0.00488984,2776.3,2775.8,2.9453]
[1645900107930,0.00488984,2776.3,2775.8,2.83958414]
[1645900108156,0.00488984,2776.3,2776.0,1.02271995]
[1645900108336,0.92432436,2776.7,2776.0,1.02271995]
[1645900108337,0.90476794,2776.7,2776.0,1.02271995]
[1645900108530,0.90476794,2776.7,2776.1,0.90072]
[1645900108531,0.9007773,2776.7,2776.1,0.90072]
[1645900108733,0.00488992,2776.2,2776.1,0.90072]
[1645900109335,0.00488992,2776.2,2776.0,1.9639]
[1645900109534,3.50399064,2776.7,2776.0,1.5309]
[1645900109735,3.5,2776.7,2776.0,0.3]
[1645900109938,0.00488984,2776.3,2776.0,0.3]
[1645900110137,0.00488984,2776.3,2775.9,0.90078]
[1645900110338,0.00488984,2776.3,2776.0,1.43113822]
[1645900110581,0.00488984,2776.3,2775.9,1.20078]
[1645900110778,0.90476614,2776.7,2775.9,1.20078]
[1645900111180,0.00488626,2776.3,2775.9,1.63378]
[1645900111982,0.90476614,2776.7,2775.9,1.63378]
[1645900112182,1.50476614,2776.7,2775.9,1.33378]
[1645900112389,0.0048863,2776.2,2775.1,0.01557315]
[1645900112597,0.3578,2775.9,2775.1,0.01557315]
[1645900112785,0.3578,2775.9,2774.6,5.65266075]
[1645900112786,0.3578,2775.7,2774.6,4.65266075]
[1645900112986,3.86179064,2775.6,2774.9,1.0]
[1645900113186,3.5,2775.5,2774.9,1.0]
[1645900113690,0.00488708,2775.3,2774.9,1.0]
[1645900114088,0.00488708,2775.3,2774.9,1.3]
[1645900114348,3.50399064,2775.8,2774.9,1.3]
[1645900114744,0.00488713,2775.2,2774.9,1.3]
[1645900115541,3.86179064,2775.8,2774.9,1.0]
[1645900115742,0.9011557,2775.5,2774.9,1.0]
[1645900115942,0.00488717,2775.2,2774.9,1.0]
[1645900116443,0.00488717,2775.2,2774.3,0.90128]
[1645900116842,5.00589064,2775.4,2774.3,0.90128]
[1645900117044,4.00589064,2775.4,2774.3,0.90128]
[1645900117348,0.00488742,2774.9,2774.3,0.90128]
[1645900117544,0.00488742,2774.9,2774.3,1.90128]
[1645900117940,0.00399064,2775.1,2774.3,1.90128]
[1645900118171,3.5,2775.1,2774.3,2.20128]
[1645900118371,0.00488754,2774.7,2774.3,2.20128]
[1645900119174,0.00488754,2774.7,2774.4,1.433]
[1645900119374,0.00399064,2775.3,2774.4,2.33411]
[1645900119575,0.00399064,2775.3,2774.8,1.16464926]
[1645900119877,0.0195449,2775.4,2774.8,1.16464926]
[1645900120276,0.0195449,2775.4,2775.0,1.0]
[1645900120476,1.2589539,2775.6,2775.0,1.0]
[1645900120677,0.00488713,2775.2,2775.0,1.0]
[1645900121078,0.00488713,2775.2,2774.8,2.06575926]
[1645900121289,0.00488713,2775.2,2774.8,14.61966926]
[1645900121481,0.00488713,2775.2,2775.1,1.0]
[1645900121846,0.00399064,2775.8,2775.1,1.733]
[1645900122047,0.01890156,2775.6,2775.3,0.90097]
[1645900122236,0.01890156,2775.6,2775.3,3.27327]
[1645900122838,0.00399064,2776.2,2775.3,4.27327]
[1645900123037,0.00399064,2776.2,2775.3,3.27327]
[1645900123336,0.00472575,2775.6,2775.3,3.97327]
[1645900123539,0.00472575,2775.6,2775.3,2.97327]
[1645900123737,0.00472575,2775.6,2775.3,3.97327]
[1645900123942,0.00472575,2775.6,2775.3,1.97327]
[1645900124138,0.00399064,2776.1,2775.3,0.90097]
[1645900124342,0.00259782,2775.6,2775.4,0.433]
[1645900124540,0.00259782,2775.6,2775.5,1.26538936]
[1645900124940,0.00259782,2775.6,2775.4,1.4888]
[1645900125141,2.42357261,2775.9,2775.4,1.1888]
[1645900125340,0.9010179,2775.9,2775.4,1.1888]
[1645900125574,0.0048833,2775.7,2775.4,0.433]
[1645900126380,0.9010179,2775.9,2775.4,0.433]
[1645900126684,0.0048833,2775.7,2775.4,0.433]
[1645900126878,0.0048833,2775.7,2775.5,0.9009]
[1645900127679,0.00399064,2776.1,2775.5,0.9009]
[1645900127879,1.2587373,2776.2,2775.5,0.9009]
[1645900127880,0.00488326,2775.7,2775.5,0.9009]
[1645900128078,0.42310087,2775.3,2775.2,3.80183]
[1645900128281,0.42310087,2775.3,2775.2,11.30853]
[1645900128779,0.42310087,2775.3,2775.2,11.74153]
[1645900129183,0.42310087,2775.3,2775.2,23.71817204]
[1645900130022,0.42310087,2775.3,2775.2,24.07597204]
[1645900130223,0.42310087,2775.3,2775.2,25.07597204]
[1645900130421,0.42310087,2775.3,2775.2,24.71817204]
[1645900131925,0.42310087,2775.3,2775.2,23.66153]
[1645900132325,0.42310087,2775.3,2775.2,12.74153]
[1645900132730,0.00488354,2775.4,2775.3,11.8578]
[1645900132929,0.00488354,2775.4,2775.3,26.38094464]
[1645900133175,8.354e-05,2775.4,2775.3,29.21203269]
[1645900133374,0.01953125,2775.8,2775.5,13.0789]
[1645900133579,0.01953125,2775.8,2775.6,11.353]
[1645900133778,0.00399064,2776.7,2775.7,1.3]
[1645900133779,0.00399064,2776.4,2775.7,1.3]
[1645900133979,4.17238945,2776.7,2775.8,0.43144644]
[1645900133980,1.52232625,2776.6,2775.8,0.43144644]
[1645900134180,3.5,2776.5,2776.1,1.0]
[1645900134387,1.52232625,2776.4,2776.1,1.0]
[1645900134582,0.67238945,2776.8,2776.1,1.3]
[1645900134583,1.52232625,2776.3,2776.1,1.3]
[1645900134781,1.52232625,2776.2,2776.1,1.0]
[1645900135182,0.00399064,2776.6,2776.1,1.90071]
[1645900135383,0.67238945,2776.8,2776.1,1.90071]
[1645900135586,0.00399064,2776.7,2776.1,1.90071]
[1645900135784,0.67638009,2776.8,2776.1,2.20071]
[1645900135983,1.52232625,2776.7,2776.1,2.63371]
[1645900136182,1.52232625,2776.6,2776.4,0.90061]
[1645900136383,1.52232625,2776.5,2776.4,0.90061]
[1645900137039,1.52232625,2776.7,2776.4,0.90061]
[1645900137434,0.67238945,2776.9,2776.4,0.90061]
[1645900137435,0.00488256,2776.6,2776.4,0.90061]
[1645900137836,1.52232625,2776.5,2776.4,0.90061]
[1645900138840,1.52232625,2776.5,2776.2,0.3]
[1645900139041,1.52232625,2776.5,2776.1,2.63369]
[1645900139240,1.52232625,2776.5,2776.1,2.33369]
[1645900139442,1.52232625,2776.5,2776.1,1.433]
[1645900139647,0.00488256,2776.6,2776.1,1.0]
[1645900139648,2.1947157,2776.6,2776.1,1.0]
[1645900139841,1.52232625,2776.5,2776.1,1.0]
[1645900140041,1.52720893,2776.4,2775.7,0.433]
[1645900140245,5.38012625,2776.3,2775.4,6.7508]
[1645900140446,5.38012625,2776.3,2775.4,1.0]
[1645900140447,1.88012625,2776.2,2775.4,1.0]
[1645900140685,5.38012625,2776.1,2775.4,1.0]
[1645900140884,1.52232625,2776.0,2775.4,1.0]
[1645900141087,1.52232625,2776.0,2775.5,1.05899651]
[1645900141088,0.00488309,2775.9,2775.5,1.05899651]
[1645900141288,0.00488309,2775.9,2775.7,1.0]
[1645900142092,0.00399064,2776.5,2776.1,1.06247705]
[1645900142298,0.01952943,2776.4,2776.2,0.9006]
[1645900142493,1.52228505,2776.3,2776.2,0.9006]
[1645900143591,0.00488272,2776.4,2776.2,0.9006]
[1645900143793,1.52228505,2776.3,2776.2,0.9006]
[1645900143991,1.52228505,2776.3,2776.2,12.2536]
[1645900144196,1.52228505,2776.3,2776.2,14.2536]
[1645900144631,0.00399064,2776.9,2776.2,14.2536]
[1645900144834,0.00488272,2776.4,2776.3,12.24646236]
[1645900145029,0.00488272,2776.4,2776.3,12.67946236]
[1645900145427,1.52698197,2776.4,2776.3,12.67946236]
[1645900145628,1.52209925,2776.4,2776.3,12.67946236]
[1645900146026,1.52209925,2776.4,2776.3,11.353]
[1645900146931,1.52209925,2776.4,2776.3,12.70644185]
[1645900148182,0.00399064,2777.0,2776.3,11.08285892]
[1645900148381,0.00454907,2776.5,2776.3,11.08285892]
[1645900148783,0.00454907,2776.5,2776.3,11.98335892]
[1645900149185,0.00399064,2777.0,2776.3,11.98335892]
[1645900149388,0.12661746,2777.1,2776.3,11.98335892]
[1645900149585,0.00454903,2776.5,2776.3,10.62991707]
[1645900149991,1.52210586,2776.4,2776.3,10.62991707]
[1645900150387,1.52210586,2776.4,2776.3,1.3335]
[1645900150788,0.0045714,2776.5,2776.3,1.3335]
[1645900151085,1.52210586,2776.4,2776.3,1.3335]
[1645900151686,1.52210586,2776.4,2776.3,2.3335]
[1645900151934,0.0045714,2776.5,2776.3,1.3335]
[1645900152136,1.52210586,2776.4,2776.3,1.3335]
[1645900152340,1.52210586,2776.4,2776.0,1.0]
[1645900152341,5.37990586,2776.4,2776.0,1.0]
[1645900152546,1.52210586,2776.3,2776.0,1.0]
[1645900152743,1.52210586,2776.3,2775.3,8.4564]
[1645900152744,3.8578,2776.2,2775.3,7.2064]
[1645900152937,1.52210586,2776.1,2775.3,7.2064]
[1645900153136,1.5260965,2776.1,2775.3,7.2064]
[1645900153339,3.5,2776.0,2775.3,8.2064]
[1645900153540,1.52210586,2775.9,2775.3,8.2064]
[1645900153735,0.00399064,2776.2,2775.3,8.2064]
[1645900153938,1.5223593,2776.2,2775.3,9.2064]
[1645900154136,0.3578,2776.0,2775.3,9.2064]
[1645900154339,1.5269297,2775.9,2775.3,19.1264]
[1645900154540,0.0045704,2775.9,2775.3,19.1264]
[1645900154743,1.52241591,2775.8,2775.5,0.90088]
[1645900154939,0.0045704,2775.9,2775.5,0.90088]
[1645900155145,1.52237853,2775.8,2775.4,1.80167]
[1645900155575,0.00457044,2775.8,2775.3,8.2064]
[1645900155775,0.00457044,2775.8,2775.3,9.2064]
[1645900156181,1.52245074,2775.7,2775.3,9.2064]
[1645900156585,0.36179064,2776.0,2775.3,9.2064]
[1645900156785,0.36179064,2776.0,2775.3,8.2064]
[1645900156786,0.00457061,2775.6,2775.3,8.2064]
[1645900157389,1.52255328,2775.5,2775.3,8.2064]
[1645900157690,1.26282764,2775.9,2775.3,8.2064]
[1645900157885,1.8802971,2775.8,2775.3,8.2064]
[1645900158086,0.0045708,2775.5,2775.3,8.2064]
[1645900158288,1.5224971,2775.4,2775.3,7.2064]
[1645900159086,0.00399064,2775.8,2775.3,7.2064]
[1645900159346,0.0022815,2775.5,2775.3,7.2064]
[1645900160040,1.52257707,2775.6,2775.3,7.2064]
[1645900160441,1.52714453,2775.5,2775.3,7.2064]
[1645900160643,0.00456746,2775.5,2775.3,7.2064]
[1645900161241,0.3578,2775.7,2775.3,7.2064]
[1645900161242,1.2588954,2775.7,2775.3,7.2064]
[1645900161441,1.52256146,2775.6,2775.3,7.2064]
[1645900161641,0.00472723,2775.5,2775.3,7.2064]
[1645900162442,0.9010954,2775.7,2775.3,7.2064]
[1645900162642,1.52254139,2775.6,2775.3,7.2064]
[1645900162849,0.00472723,2775.5,2775.3,7.2064]
[1645900163693,0.00399064,2775.8,2775.3,7.2064]
[1645900163894,0.9010126,2775.9,2775.3,7.2064]
[1645900164095,0.00472723,2775.5,2775.3,7.2064]
[1645900164896,0.00399064,2775.8,2775.3,7.2064]
[1645900165098,0.9010126,2775.9,2775.5,1.34979072]
[1645900165300,1.52243599,2775.8,2775.3,10.10737]
[1645900166000,1.52243599,2775.8,2775.3,9.10737]
[1645900166200,1.52243599,2775.8,2775.4,2.06881472]
[1645900166500,0.00227084,2775.7,2775.4,2.06881472]
[1645900167338,1.52243599,2776.0,2775.4,2.06881472]
[1645900167543,0.00227084,2775.7,2775.4,1.0]
[1645900168545,1.52243599,2775.9,2775.4,1.0]
[1645900168741,0.00472423,2775.7,2775.4,2.31867735]
[1645900169145,0.00325458,2775.7,2775.5,10.92]
[1645900169448,0.00325458,2775.7,2775.6,12.82074]
[1645900169641,0.01889408,2776.1,2775.6,14.35104]
[1645900169842,0.00399064,2776.5,2776.0,1.37248311]
[1645900170041,0.00399064,2776.6,2776.0,1.0]
[1645900170240,0.67638009,2776.8,2776.0,1.0]
[1645900170442,0.67638009,2776.8,2776.1,0.9007]
[1645900170443,0.67238945,2776.8,2776.1,0.9007]
[1645900170688,3.5,2776.7,2776.0,0.27705366]
[1645900170881,1.5222053,2776.6,2776.0,0.27705366]
[1645900171082,1.5222053,2776.6,2776.1,12.2978295]
[1645900171283,1.5222053,2776.5,2776.2,0.433]
[1645900171586,1.5222053,2776.4,2776.2,2.23414]
[1645900171785,1.5222053,2776.3,2776.2,2.23414]
[1645900171986,0.67238945,2777.0,2776.2,2.23414]
[1645900171987,1.5222053,2776.7,2776.2,2.23414]
[1645900172187,1.5222053,2776.6,2776.3,0.276]
[1645900172387,0.00259664,2776.4,2776.3,0.276]
[1645900173292,1.5222053,2776.7,2776.3,0.276]
[1645900173788,0.0048793,2776.5,2776.3,1.60956]
[1645900174087,1.5222053,2776.4,2776.3,1.60956]
[1645900174352,1.5222053,2776.4,2776.3,12.52956]
[1645900174752,1.5222053,2776.4,2776.3,13.52956]
[1645900175553,1.5222053,2776.4,2776.3,2.60956]
[1645900176058,1.5222053,2776.4,2776.3,13.52956]